bitfinex-derivatives/quotes_SOLF0:USTF0_20241021
["timestamp","ask_amount","ask_price","bid_price","bid_amount"]
[1729520303292,7.04,164.27,164.18,1.2747]
[1729520303497,10.08325202,164.29,164.25,3.0451]
[1729520303797,7.04,164.29,164.25,3.0451]
[1729520304400,7.04,164.29,164.2,7.04]
[1729520304401,3.07500983,164.29,164.2,7.04]
[1729520304595,8.3406,164.32,164.2,7.04]
[1729520304797,10.12933205,164.32,164.3,3.0441]
[1729520304999,7.04,164.38,164.25,7.04]
[1729520305200,7.04,164.38,164.26,1.3071]
[1729520305497,7.04,164.38,164.33,3.0436]
[1729520305902,7.04,164.38,164.26,2.3076]
[1729520306195,7.04,164.38,164.18,72.84]
[1729520306401,7.04,164.38,164.19,2.3059]
[1729520306598,3.0435,164.34,164.24,3.0452]
[1729520306797,7.0,164.33,164.19,2.3059]
[1729520307199,7.0,164.37,164.31,3.0439]
[1729520307397,7.0,164.37,164.24,7.0]
[1729520307595,7.0,164.37,164.2,6.092]
[1729520307802,7.0,164.37,164.23,7.0]
[1729520308203,10.043,164.37,164.29,3.0443]
[1729520308403,10.043,164.37,164.23,7.0]
[1729520308700,7.0,164.37,164.31,3.0439]
[1729520309098,7.0,164.37,164.33,3.0436]
[1729520309299,7.0,164.38,164.23,7.0]
[1729520309704,3.9234,164.4,164.23,7.0]
[1729520309705,10.9234,164.4,164.23,7.0]
[1729520309899,10.9234,164.4,164.24,3.06585004]
[1729520310295,10.9234,164.4,164.25,7.0]
[1729520310498,10.9234,164.4,164.26,7.0]
[1729520310901,3.0429,164.38,164.3,3.0442]
[1729520311105,10.9234,164.4,164.3,3.0442]
[1729520311504,3.043,164.37,164.26,7.0]
[1729520311705,29.2634,164.4,164.19,2.3059]
[1729520311999,29.2634,164.4,164.23,7.0]
[1729520312000,3.0439,164.32,164.23,7.0]
[1729520312198,3.08312012,164.32,164.26,3.0448]
[1729520312403,7.0,164.34,164.23,7.0]
[1729520312804,7.0,164.34,164.29,3.0444]
[1729520313105,7.0,164.34,164.23,7.0]
[1729520313303,7.0,164.34,164.26,3.0449]
[1729520314007,3.0439,164.32,164.26,3.0449]
[1729520314209,2.98311039,164.32,164.21,7.0]
[1729520314509,7.0,164.34,164.27,3.0447]
[1729520314903,3.0438,164.33,164.27,3.0447]
[1729520315401,7.0,164.34,164.21,7.0]
[1729520316000,3.044,164.32,164.26,3.0449]
[1729520316204,6.10844302,164.32,164.26,3.0449]
[1729520316503,3.044,164.32,164.26,3.0449]
[1729520317007,3.0449,164.27,164.22,3.0457]
[1729520317208,7.0,164.27,164.15,8.2689]
[1729520317603,3.0451,164.26,164.21,3.0458]
[1729520317811,3.0451,164.26,164.15,8.2689]
[1729520318005,3.0451,164.26,164.2,3.046]
[1729520318507,10.07231518,164.27,164.18,3.0463]
[1729520318806,10.07231518,164.27,164.11,2.2687]
[1729520318997,3.07231518,164.27,164.13,7.0]
[1729520319199,13.9838,164.31,164.25,3.045]
[1729520319610,13.9678377,164.31,164.18,7.0]
[1729520320006,13.9678377,164.31,164.14,7.0]
[1729520321304,3.0449,164.27,164.21,3.0458]
[1729520321503,7.0,164.26,164.21,3.0458]
[1729520321806,3.0452,164.25,164.2,3.0459]
[1729520322007,3.0452,164.25,164.14,7.0]
[1729520323110,3.0452,164.25,164.19,3.0462]
[1729520323908,10.0451,164.26,164.2,3.046]
[1729520324108,7.0,164.26,164.2,3.046]
[1729520324711,6.9678377,164.31,164.14,10.09813089]
[1729520324907,7.0,164.3,164.24,3.0453]
[1729520325310,7.0,164.3,164.24,3.0452]
[1729520325710,10.0443,164.3,164.16,6.0937]
[1729520326614,10.0443,164.3,164.24,3.0452]
[1729520327312,7.0,164.3,164.16,6.0937]
[1729520327511,3.045,164.26,164.21,3.0458]
[1729520327710,7.0,164.3,164.16,7.0]
[1729520328112,10.0442,164.3,164.25,3.0451]
[1729520329307,3.0448,164.27,164.16,7.0]
[1729520330409,7.0,164.3,164.16,7.0]
[1729520330716,3.0453,164.25,164.15,7.0]
[1729520331015,3.0453,164.25,164.2,3.0461]
[1729520331510,3.0453,164.25,164.19,3.0462]
[1729520331713,10.0453,164.25,164.19,3.0462]
[1729520332017,2.5784,164.24,164.11,2.2687]
[1729520332214,3.0458,164.22,164.12,7.0]
[1729520332414,6.10698011,164.22,164.12,7.0]
[1729520332619,3.0458,164.22,164.12,7.0]
[1729520333011,6.10772512,164.22,164.16,3.0466]
[1729520333208,4.3375,164.23,164.11,9.2687]
[1729520333814,4.3375,164.23,164.17,3.0465]
[1729520334422,4.3375,164.23,164.11,9.2687]
[1729520334423,3.0458,164.22,164.11,9.2687]
[1729520334619,2.97596565,164.22,164.11,9.2687]
[1729520334819,1.2919,164.23,164.11,9.2687]
[1729520335319,3.04729372,164.22,164.11,9.2687]
[1729520335616,7.95683626,164.41,164.11,9.2687]
[1729520335617,7.0,164.27,164.11,9.2687]
[1729520335817,10.0448,164.27,164.21,3.0458]
[1729520336016,13.15945912,164.27,164.21,3.0458]
[1729520336718,10.11465912,164.27,164.16,7.0]
[1729520336917,3.0452,164.25,164.19,3.0461]
[1729520337114,10.11465912,164.27,164.16,7.0]
[1729520337624,3.045,164.26,164.2,3.046]
[1729520338219,3.045,164.26,164.16,7.0]
[1729520338419,3.045,164.26,164.21,3.0459]
[1729520338721,10.11465912,164.27,164.16,7.0]
[1729520338918,3.0453,164.25,164.16,7.0]
[1729520339630,3.0453,164.25,164.18,3.0463]
[1729520339820,3.0453,164.25,164.16,7.0]
[1729520340314,3.0453,164.25,164.19,3.0462]
[1729520341221,10.11465912,164.27,164.16,7.0]
[1729520341521,10.11465912,164.27,164.16,13.0937]
[1729520341728,10.11465912,164.27,164.23,3.0454]
[1729520342121,10.11465912,164.27,164.16,13.0937]
[1729520343425,10.11465912,164.27,164.23,3.0454]
[1729520343721,10.11465912,164.27,164.16,13.0937]
[1729520343722,13.15945912,164.27,164.16,13.0937]
[1729520343917,6.15945912,164.27,164.16,13.0937]
[1729520344123,3.11465912,164.27,164.16,13.0937]
[1729520344325,10.0247,164.28,164.23,3.0455]
[1729520344722,13.04016688,164.28,164.22,3.0457]
[1729520344926,9.99546688,164.28,164.16,13.0937]
[1729520345226,9.99546688,164.28,164.24,3.0452]
[1729520345830,9.99546688,164.28,164.16,7.0]
[1729520346030,3.01546688,164.28,164.17,6.0932]
[1729520346227,2.4709,164.3,164.17,6.0932]
[1729520346524,5.49696677,164.3,164.18,2.3414]
[1729520346722,5.49696677,164.3,164.21,3.0458]
[1729520346925,5.49696677,164.3,164.18,2.3414]
[1729520349127,8.54126677,164.3,164.24,3.0452]
[1729520349524,15.52126677,164.3,164.24,3.0452]
[1729520349925,15.52126677,164.3,164.25,3.0451]
[1729520350424,12.47696677,164.3,164.18,1.3399]
[1729520350729,12.47696677,164.3,164.15,6.98]
[1729520350933,3.0447,164.28,164.22,3.0456]
[1729520351128,12.47696677,164.3,164.15,6.98]
[1729520352336,12.47696677,164.3,164.16,6.98]
[1729520352740,3.0452,164.25,164.19,3.0462]
[1729520353141,10.0252,164.25,164.19,3.0462]
[1729520353536,10.0252,164.25,164.11,1.2705]
[1729520353537,6.98,164.25,164.11,1.2705]
[1729520353733,3.0461,164.21,164.15,3.047]
[1729520353938,6.06759835,164.21,164.11,1.2705]
[1729520355034,4.3231,164.2,164.14,3.0471]
[1729520355341,4.29606067,164.2,164.14,3.0471]
[1729520356243,4.29606067,164.2,164.15,3.047]
[1729520359557,4.29606067,164.2,164.16,3.0468]
[1729520359754,11.27606067,164.2,164.08,7.096]
[1729520360050,1.2351,164.19,164.08,7.9796]
[1729520360256,1.2351,164.19,164.06,1.3172]
[1729520360552,1.2351,164.19,164.1,3.0479]
[1729520360754,1.2351,164.19,164.0,2.97510901]
[1729520360943,1.2351,164.19,164.03,1.52436494]
[1729520361152,1.2351,164.19,164.07,3.0484]
[1729520361457,22.5714,164.19,163.99,6.98]
[1729520361668,6.98,164.18,164.12,3.0476]
[1729520361859,6.98,164.18,164.0,7.62391838]
[1729520362051,6.98,164.18,164.01,2.2791]
[1729520362758,1.2351,164.19,164.01,2.2791]
[1729520363056,8.2151,164.19,164.01,2.2791]
[1729520363254,8.2151,164.19,164.04,6.0981]
[1729520363456,8.2151,164.19,164.15,3.0469]
[1729520363649,8.2151,164.19,164.05,6.98]
[1729520363853,8.2151,164.19,164.06,6.0973]
[1729520364159,8.2151,164.19,164.15,3.0469]
[1729520368860,8.2151,164.19,164.06,6.0973]
[1729520369153,8.2151,164.19,164.16,3.0468]
[1729520369553,8.2151,164.19,164.15,3.0469]
[1729520369753,8.2151,164.19,164.06,6.0973]
[1729520370658,8.2151,164.19,164.15,3.0469]
[1729520371249,6.96,164.18,164.07,9.12198274]
[1729520371550,6.96,164.18,164.05,6.96]
[1729520372157,6.96,164.18,164.17,3.0466]
[1729520372360,6.96,164.18,164.09,6.0961]
[1729520372660,6.96,164.18,164.15,3.0469]
[1729520372860,6.96,164.18,164.09,6.0961]
[1729520373256,6.96,164.18,164.15,3.0468]
[1729520373459,6.96,164.18,164.09,6.0961]
[1729520374662,6.96,164.18,164.16,3.0468]
[1729520375358,6.96,164.18,164.09,6.0961]
[1729520376361,6.96,164.18,164.17,3.0466]
[1729520377364,6.96,164.18,164.12,3.0475]
[1729520377561,6.96,164.18,164.03,13.0582]
[1729520378259,6.96,164.18,164.07,3.0484]
[1729520378459,6.96,164.18,164.03,13.0582]
[1729520378964,6.96,164.18,164.12,3.0474]
[1729520379260,6.96,164.18,164.03,6.0982]
[1729520379564,6.96,164.18,164.05,6.0977]
[1729520380066,1.2351,164.19,164.06,6.0973]
[1729520380263,6.96,164.18,164.02,6.96]
[1729520380771,6.96,164.18,164.15,3.0468]
[1729520380976,8.1951,164.19,164.07,13.057]
[1729520381269,8.1951,164.19,164.17,3.0465]
[1729520383561,8.1951,164.19,164.07,6.96]
[1729520383762,8.1951,164.19,164.1,6.0957]
[1729520384768,8.1951,164.19,164.13,3.0473]
[1729520385066,8.1951,164.19,164.04,9.5047]
[1729520385271,8.1951,164.19,164.11,3.0476]
[1729520385463,8.1951,164.19,164.04,9.5047]
[1729520385664,8.1951,164.19,164.04,2.5447]
[1729520385865,8.1951,164.19,164.04,9.5047]
[1729520386066,8.1951,164.19,164.12,3.0474]
[1729520386265,8.1951,164.19,164.04,9.5047]
[1729520387172,8.1951,164.19,164.15,3.0469]
[1729520387667,6.96,164.18,164.15,3.0469]
[1729520389062,6.96,164.18,164.04,9.5047]
[1729520389267,6.96,164.18,164.17,3.0466]
[1729520389467,1.2351,164.19,164.09,6.96]
[1729520390267,1.2351,164.19,164.18,3.0465]
[1729520390869,1.2351,164.19,164.09,6.96]
[1729520391965,1.2351,164.19,164.16,3.0467]
[1729520393576,1.2351,164.19,164.14,3.0471]
[1729520393776,1.2351,164.19,164.09,6.96]
[1729520394872,1.2351,164.19,164.07,13.0568]
[1729520395675,1.2351,164.19,164.04,2.5447]
[1729520396472,10.20975948,164.19,164.04,2.5447]
[1729520396677,3.0467,164.17,164.1,3.0479]
[1729520396881,6.92,164.16,164.1,3.0479]
[1729520397280,1.3312,164.15,164.1,3.0479]
[1729520398381,1.3312,164.15,164.11,3.0477]
[1729520399177,1.3312,164.15,164.04,2.5447]
[1729520400077,1.3312,164.15,164.1,3.0478]
[1729520401290,1.3312,164.15,164.04,1.2671]
[1729520401483,6.92,164.16,164.14,3.0472]
[1729520401688,6.92,164.16,164.04,1.2671]
[1729520402090,6.92,164.16,164.07,9.1454]
[1729520402279,6.92,164.16,164.07,3.0484]
[1729520402888,6.92,164.16,164.13,3.0473]
[1729520403784,3.0471,164.15,164.07,3.0484]
[1729520403985,6.92,164.16,164.04,1.2671]
[1729520404582,6.92,164.16,164.09,3.0481]
[1729520404887,6.92,164.16,164.04,1.2671]
[1729520405286,3.0471,164.15,164.09,3.048]
[1729520405485,6.92,164.16,164.0,1.2841]
[1729520405486,25.21,164.16,164.0,1.2841]
[1729520405684,25.21,164.16,164.05,3.0489]
[1729520405685,3.0479,164.11,164.05,3.0489]
[1729520405879,6.92,164.1,164.05,3.0489]
[1729520406078,9.92522977,164.1,164.05,3.0489]
[1729520406290,9.92522977,164.1,164.0,1.2841]
[1729520406887,9.92522977,164.1,164.04,3.049]
[1729520407087,9.92522977,164.1,164.0,1.2841]
[1729520408087,9.92522977,164.1,164.01,1.2537]
[1729520408886,9.92522977,164.1,163.94,1.2551]
[1729520409188,9.92522977,164.1,163.95,9.465]
[1729520409392,3.0482,164.09,164.02,3.0493]
[1729520409987,3.00522977,164.1,163.96,6.1008]
[1729520410190,6.9326,164.12,163.96,6.1008]
[1729520410191,6.92,164.09,163.96,6.1008]
[1729520410387,9.97020092,164.09,163.96,6.1008]
[1729520410789,9.97020092,164.09,163.95,9.465]
[1729520411297,3.0484,164.08,164.02,3.0493]
[1729520411899,9.97020092,164.09,164.02,3.0493]
[1729520412089,13.01840092,164.09,163.95,9.465]
[1729520412292,9.97020092,164.09,163.95,9.465]
[1729520412496,9.97020092,164.09,163.95,2.545]
[1729520412801,9.97020092,164.09,163.91,16.0745]
[1729520413194,3.049,164.05,163.99,3.0499]
[1729520413390,3.049,164.05,163.91,16.0745]
[1729520413391,10.8701,164.04,163.91,16.0745]
[1729520413590,10.8701,164.04,163.94,3.0507]
[1729520413797,10.8701,164.04,163.91,16.0745]
[1729520414200,10.8701,164.04,163.91,6.92]
[1729520414888,10.8701,164.04,163.99,3.05]
[1729520415085,10.8701,164.04,163.91,6.92]
[1729520415894,10.8701,164.04,163.87,3.9596]
[1729520416093,10.8701,164.04,163.9,6.92]
[1729520416885,10.8701,164.04,163.87,3.9596]
[1729520417092,3.0497,164.01,163.87,3.9596]
[1729520417898,3.0497,164.01,163.95,3.0506]
[1729520418700,3.0497,164.01,163.87,3.9596]
[1729520418996,3.0497,164.01,163.96,3.0505]
[1729520419198,3.0497,164.01,163.87,3.9596]
[1729520419409,29.1601,164.04,163.93,3.051]
[1729520419795,29.1601,164.04,163.87,3.9596]
[1729520419993,3.0504,163.97,163.92,3.0513]
[1729520420189,6.94,163.96,163.92,3.0513]
[1729520420390,13.88382552,163.96,163.92,3.0513]
[1729520420601,13.88382552,163.96,163.9,3.0516]
[1729520420602,3.0508,163.95,163.9,3.0516]
[1729520420802,13.88382552,163.96,163.83,6.94]
[1729520421103,13.88382552,163.96,163.9,3.0516]
[1729520421497,13.88382552,163.96,163.83,6.94]
[1729520421688,13.88382552,163.96,163.81,6.1065]
[1729520422593,3.0513,163.92,163.87,3.0521]
[1729520422797,6.94,163.91,163.8,6.94]
[1729520423190,6.94,163.91,163.83,3.0529]
[1729520423394,6.94,163.91,163.8,6.94]
[1729520423902,6.94382552,163.96,163.8,6.94]
[1729520424199,2.98892552,163.96,163.8,6.94]
[1729520424392,6.94,164.01,163.8,6.94]
[1729520424597,6.94,164.01,163.81,1.12194172]
[1729520424900,10.04284655,164.01,163.95,3.0506]
[1729520425797,10.04284655,164.01,163.88,6.94]
[1729520426201,13.09244655,164.01,163.94,3.0508]
[1729520426802,3.05,163.99,163.92,3.0511]
[1729520427006,3.05,163.99,163.88,6.9]
[1729520427505,10.04284655,164.01,163.88,6.9]
[1729520427707,10.00284655,164.01,163.88,6.9]
[1729520428205,10.00284655,164.01,163.97,3.0503]
[1729520428506,10.00284655,164.01,163.88,6.9]
[1729520429697,10.00284655,164.01,163.97,3.0502]
[1729520433202,10.00284655,164.01,163.98,3.0501]
[1729520435307,10.00284655,164.01,163.99,3.0499]
[1729520435511,3.10284655,164.01,163.88,9.95565848]
[1729520435714,2.6865,164.04,163.88,9.95565848]
[1729520435911,3.07214256,164.04,163.88,9.95565848]
[1729520436103,9.9485,164.07,163.88,9.95565848]
[1729520436307,9.9485,164.07,164.01,3.0494]
[1729520436506,9.9485,164.07,163.92,6.1026]
[1729520436507,6.9,164.07,163.93,6.9]
[1729520436708,9.91402169,164.07,163.93,9.4974]
[1729520436910,3.01402169,164.07,164.06,3.0487]
[1729520437106,6.9,164.09,164.0,6.9]
[1729520437407,6.9,164.13,164.01,2.6467]
[1729520437805,9.9474,164.13,164.01,2.6467]
[1729520438009,6.9,164.13,164.01,2.6467]
[1729520438213,6.9,164.13,163.94,1.291]
[1729520438417,6.9,164.13,163.95,8.1908]
[1729520439015,3.0483,164.09,163.95,8.1908]
[1729520439215,9.6053,164.08,164.02,3.0494]
[1729520439713,9.6053,164.08,163.95,8.1908]
[1729520440016,9.6053,164.08,163.96,1.2577]
[1729520440519,9.6053,164.08,164.02,3.0493]
[1729520440911,9.6053,164.08,164.03,3.0492]
[1729520442218,1.2387,164.07,164.03,3.0492]
[1729520443317,1.2387,164.07,163.95,8.1908]
[1729520443714,3.049,164.05,163.95,8.1908]
[1729520443919,3.049,164.05,163.95,1.2908]
[1729520444125,3.049,164.05,164.01,3.0496]
[1729520444417,3.0487,164.06,164.01,3.0496]
[1729520445421,3.0487,164.06,164.02,3.0494]
[1729520445925,3.0491,164.04,164.0,3.0496]
[1729520446220,6.9,164.03,163.92,1.315]
[1729520446420,6.9,164.03,163.95,3.0507]
[1729520446621,6.9,164.03,163.92,1.315]
[1729520447127,6.9,164.03,163.95,3.0507]
[1729520447423,6.9,164.03,163.89,2.5542]
[1729520447819,6.9,164.03,163.87,1.2956]
[1729520448018,6.9,164.03,163.87,3.8498]
[1729520448214,6.9,164.03,163.88,6.104]
[1729520448816,9.9494,164.03,163.88,6.104]
[1729520449219,3.0495,164.02,163.96,3.0505]
[1729520449515,6.9,164.03,163.88,6.104]
[1729520449916,3.0497,164.01,163.88,6.104]
[1729520450321,3.0497,164.01,163.95,3.0507]
[1729520450519,2.5373,164.0,163.95,3.0507]
[1729520451322,5.52787822,164.0,163.88,6.104]
[1729520451521,6.9,164.03,163.87,3.8498]
[1729520452525,6.9,164.03,163.93,3.0511]
[1729520452526,3.05,163.99,163.93,3.0511]
[1729520452725,9.5114,163.98,163.93,3.0511]
[1729520453026,9.5114,163.98,163.76,3.0469392]
[1729520453226,1.2508,163.97,163.8,16.9507]
[1729520453425,1.2508,163.97,163.89,3.0517]
[1729520453628,1.2508,163.97,163.82,6.9]
[1729520454130,3.051,163.94,163.88,3.052]
[1729520454326,6.9,163.93,163.88,3.052]
[1729520455325,1.2508,163.97,163.82,6.9]
[1729520455531,6.86,163.95,163.83,6.1059]
[1729520456030,1.2508,163.97,163.82,6.9]
[1729520456227,9.4714,163.98,163.82,6.9]
[1729520456735,9.4714,163.98,163.95,3.0506]
[1729520457132,9.4714,163.98,163.91,3.0515]
[1729520457331,2.6114,163.98,163.88,6.86]
[1729520457930,3.01030051,163.99,163.88,6.86]
[1729520458127,6.86,164.0,163.88,6.86]
[1729520458327,6.86,164.0,163.95,3.0506]
[1729520458935,9.97030013,164.0,163.88,6.86]
[1729520459334,3.11030013,164.0,163.88,6.86]
[1729520459542,2.6361,164.07,163.9,6.1032]
[1729520459738,6.86,164.06,163.9,6.1032]
[1729520460142,6.86,164.06,164.0,3.0497]
[1729520460338,6.86,164.06,163.93,6.86]
[1729520460537,6.86,164.06,163.94,3.8301]
[1729520460738,2.6361,164.07,164.02,3.0493]
[1729520460944,9.4961,164.07,163.94,3.8301]
[1729520461241,9.4961,164.07,164.02,3.0493]
[1729520461437,9.4961,164.07,163.94,3.8301]
[1729520461839,3.049,164.05,163.97,3.0502]
[1729520462035,3.049,164.05,163.94,3.8301]
[1729520462337,3.0489,164.05,163.98,3.05]
[1729520462537,9.4961,164.07,163.93,6.86]
[1729520462841,9.4961,164.07,163.94,1.3705]
[1729520463037,9.4961,164.07,163.94,4.46386214]
[1729520463240,9.4961,164.07,163.94,1.3705]
[1729520463241,2.6361,164.07,163.94,1.3705]
[1729520463439,1.3663,164.07,164.0,3.0497]
[1729520463937,1.3663,164.07,163.94,1.3705]
[1729520464142,1.3663,164.07,164.0,3.0497]
[1729520466052,1.3663,164.07,163.94,1.3705]
[1729520466548,1.3663,164.07,163.91,9.4648]
[1729520467047,1.3663,164.07,163.91,2.6048]
[1729520467249,3.0492,164.04,163.94,3.0509]
[1729520467435,6.86,164.03,163.94,3.0509]
[1729520468545,3.0495,164.02,163.92,3.0512]
[1729520470449,3.0495,164.02,163.91,2.6048]
[1729520470450,3.0495,164.02,163.93,3.0511]
[1729520470646,3.0505,163.97,163.86,1.344]
[1729520470847,9.96625787,163.97,163.86,1.344]
[1729520471049,1.2865,163.96,163.86,1.344]
[1729520471253,1.2865,163.96,163.82,80.89813443]
[1729520471554,1.3703,163.95,163.82,90.81123443]
[1729520471846,1.3703,163.95,163.82,80.89813443]
[1729520472043,1.3703,163.95,163.81,1.2595]
[1729520472244,3.0513,163.92,163.82,3.053]
[1729520472443,9.9113,163.92,163.82,3.053]
[1729520473749,6.86,163.92,163.82,3.053]
[1729520473952,3.0515,163.91,163.82,3.053]
[1729520475044,6.86,163.92,163.81,1.2595]
[1729520475244,6.86,163.92,163.8,1.2659]
[1729520475445,1.2735,163.91,163.8,1.2659]
[1729520475848,1.2735,163.91,163.77,6.88]
[1729520476950,3.0523,163.87,163.79,3.0537]
[1729520477447,6.0479412,163.87,163.79,3.0537]
[1729520477845,2.9956412,163.87,163.8,3.0535]
[1729520478048,3.0521,163.88,163.8,3.0535]
[1729520478355,3.07836533,163.88,163.81,3.0533]
[1729520478552,1.2735,163.91,163.77,6.88]
[1729520478553,6.88,163.91,163.77,6.88]
[1729520479049,9.9316,163.91,163.77,6.88]
[1729520479455,9.9316,163.91,163.83,3.0528]
[1729520479644,3.0513,163.92,163.77,6.88]
[1729520479847,6.88,163.93,163.77,6.88]
[1729520480044,6.88,163.93,163.83,3.0528]
[1729520480249,6.88,163.93,163.82,6.88]
[1729520481347,3.052,163.89,163.82,6.88]
[1729520482253,3.04420431,163.88,163.82,6.88]
[1729520482458,6.88,163.92,163.82,6.88]
[1729520483047,3.0515,163.91,163.84,3.0526]
[1729520483255,6.88,163.92,163.74,1.2345]
[1729520483458,3.0521,163.88,163.81,3.0533]
[1729520483657,6.11340829,163.88,163.81,3.0533]
[1729520484353,3.06130829,163.88,163.75,6.88]
[1729520484555,6.88,163.92,163.75,6.88]
[1729520484852,3.0535,163.8,163.73,3.0547]
[1729520485055,3.1166599,163.8,163.7,6.84]
[1729520485258,6.84,163.82,163.7,6.84]
[1729520485555,3.0537,163.8,163.7,6.84]
[1729520485767,9.96063056,163.82,163.7,6.84]
[1729520486053,13.01393056,163.82,163.74,3.0546]
[1729520486258,9.96063056,163.82,163.74,3.0546]
[1729520487958,3.0534,163.81,163.74,3.0546]
[1729520489260,9.96063056,163.82,163.7,6.84]
[1729520489854,9.96063056,163.82,163.75,3.0544]
[1729520490063,9.96063056,163.82,163.7,6.84]
[1729520490258,3.0534,163.81,163.74,3.0546]
[1729520490863,9.96063056,163.82,163.73,3.0547]
[1729520491059,1.3639,163.81,163.73,3.0547]
[1729520491261,2.6338,163.81,163.73,3.0547]
[1729520491458,3.0535,163.8,163.73,3.0547]
[1729520491659,2.6338,163.81,163.7,6.84]
[1729520491860,2.6338,163.81,163.73,3.0548]
[1729520492352,2.6338,163.81,163.7,6.84]
[1729520492553,5.6872,163.81,163.74,3.0546]
[1729520493362,2.6338,163.81,163.67,3.11280376]
[1729520493560,5.6873,163.81,163.73,3.0547]
[1729520493864,2.6338,163.81,163.68,6.84]
[1729520494067,2.6338,163.81,163.75,3.0543]
[1729520494861,2.6338,163.81,163.68,9.93599205]
[1729520495059,3.12063056,163.82,163.68,9.93599205]
[1729520495260,6.84,163.84,163.69,6.1111]
[1729520495569,9.8204882,163.84,163.78,3.0538]
[1729520496759,9.8204882,163.84,163.73,6.84]
[1729520497063,2.9804882,163.84,163.73,6.84]
[1729520497268,1.2922,163.86,163.76,6.1085]
[1729520497460,3.0074978,163.85,163.82,3.0531]
[1729520497965,3.0074978,163.85,163.74,3.9172]
[1729520498361,1.2922,163.86,163.74,3.9172]
[1729520498557,4.28473056,163.86,163.74,10.7572]
[1729520498867,4.28473056,163.86,163.74,6.84]
[1729520499671,3.0531,163.83,163.74,6.84]
[1729520499863,9.8931,163.83,163.74,6.84]
[1729520500064,6.84,163.83,163.78,3.0538]
[1729520500265,6.84,163.83,163.74,6.84]
[1729520500566,4.28473056,163.86,163.74,6.84]
[1729520500860,2.99253056,163.86,163.74,12.9491]
[1729520501066,3.08977581,163.97,163.74,6.84]
[1729520501067,9.4784,163.94,163.74,6.84]
[1729520501266,9.4784,163.94,163.87,3.052]
[1729520501267,12.5294,163.94,163.87,3.052]
[1729520501468,12.5294,163.94,163.81,6.84]
[1729520501671,3.0511,163.93,163.86,3.0523]
[1729520501868,9.4784,163.94,163.81,6.84]
[1729520502169,3.0518,163.9,163.83,3.0529]
[1729520502471,6.84,163.89,163.77,10.6989]
[1729520502662,6.84,163.88,163.77,10.6989]
[1729520502962,12.87407317,163.88,163.82,3.0531]
[1729520503163,9.82207317,163.88,163.82,3.0531]
[1729520503368,9.82207317,163.88,163.77,10.6989]
[1729520503570,9.82207317,163.88,163.83,3.0529]
[1729520504869,9.82207317,163.88,163.77,10.6989]
[1729520505366,9.82207317,163.88,163.83,3.0529]
[1729520505967,9.82207317,163.88,163.87,3.0522]
[1729520506364,9.82207317,163.88,163.77,10.6989]
[1729520506573,9.82207317,163.88,163.86,3.0523]
[1729520507671,9.82207317,163.88,163.87,3.0522]
[1729520507972,6.84,163.92,163.87,3.0522]
[1729520508174,8.0836,163.92,163.87,3.0522]
[1729520508673,8.0836,163.92,163.89,3.0518]
[1729520509673,8.0836,163.92,163.77,10.6989]
[1729520509874,8.0836,163.92,163.9,3.0516]